Cogmind - Beta 11 @@@ ROGUE MODE // 2022.03.22 @ 05:10:17 Player: GGOBC-006 Result: Destroyed by G-67 Veteran with Plasma Rifle Performance ------------- Evolutions (6) 3000 Regions Visited (11) 2200 Robots Destroyed (24) 120 Value Destroyed (592) 592 Prototype IDs (0) 0 Alien Tech Used (0) 0 Bonus (500) 500 TOTAL SCORE: 6412 Bonus ------- Entered DSFs 500 Cogmind --------- Core Integrity 0/1150 Matter 300/300 Energy 150/150 System Corruption 0% Temperature Cool (12) Movement Treading (145) Location -4/Armory Parts ------- > --- POWER (5) -------- Micro Fission Core > --- PROPULSION (10) -- Biometal Heavy Treads Biometal Heavy Treads Biometal Heavy Treads Biometal Heavy Treads Biometal Heavy Treads > --- UTILITY (2) ------ (None) > --- WEAPON (2) ------- (None) > --- INVENTORY (5) ---- Improved Heat Sink Mace Peak State ------------ > --- POWER ------------ Micro Fission Core > --- PROPULSION ------- Biometal Heavy Treads Biometal Heavy Treads Biometal Heavy Treads Biometal Heavy Treads Biometal Heavy Treads > --- UTILITY ---------- (None) > --- WEAPON ----------- (None) > --- INVENTORY -------- Improved Heat Sink Mace [Rating: 96] Favorites ----------- Power Light Ion Engine Engine Light Ion Engine Power Core Light Nuclear Core Propulsion Titanium Leg Treads Biometal Heavy Treads Leg Titanium Leg Wheel Compact Wheel Hover Unit Improved Hover Unit Flight Unit Flight Unit Utility Sensor Array Device Sensor Array Hackware Authchip [Propulsion] Protection Hardened Light Armor Plating Weapon Heavy EM Pulse Gun Energy Gun Heavy EM Pulse Gun Impact Weapon Mace Slashing Weapon Ripper Build | -11 -10 -9 -8 -7 -7 -7 -6 -6 -5 -4 -4 ------- Run | Scr Mat Mat Mat Fac Low Low Fac DSF Fac Fac Arm Slots Evolved 12 | . . 2 2 2 . . 2 . 2 2 . Power 4 | . . 1 1 . . . . . 1 1 . Propulsion 8 | . . 1 1 2 . . 2 . 1 1 . Utility . | . . . . . . . . . . . . Weapon . | . . . . . . . . . . . . Parts Attached 66 | 3 7 9 7 12 9 1 . 5 1 6 6 Power 9 | 1 1 1 2 . 2 . . . . 1 1 Engine 5 | 1 1 1 2 . . . . . . . . Core 4 | . . . . . 2 . . . . 1 1 Reactor . | . . . . . . . . . . . . Propulsion 36 | 2 4 4 4 10 4 . . . 1 2 5 Treads 6 | . . . . . . . . . . 1 5 Leg 10 | . . . . 10 . . . . . . . Wheel 4 | 2 . . 2 . . . . . . . . Hover 2 | . . . 1 . . . . . 1 . . Flight 14 | . 4 4 1 . 4 . . . . 1 . Utility 15 | . 2 3 . 2 1 . . 5 . 2 . Device 9 | . 2 2 . 2 . . . 2 . 1 . Storage . | . . . . . . . . . . . . Processor . | . . . . . . . . . . . . Hackware 3 | . . . . . . . . 3 . . . Protection 3 | . . 1 . . 1 . . . . 1 . Artifact . | . . . . . . . . . . . . Weapon 6 | . . 1 1 . 2 1 . . . 1 . Energy Gun 4 | . . 1 . . 2 . . . . 1 . Energy Cannon . | . . . . . . . . . . . . Ballistic Gun . | . . . . . . . . . . . . Ballistic Cannon . | . . . . . . . . . . . . Launcher . | . . . . . . . . . . . . Special Weapon . | . . . . . . . . . . . . Impact Weapon 1 | . . . 1 . . . . . . . . Slashing Weapon 1 | . . . . . . 1 . . . . . Piercing Weapon . | . . . . . . . . . . . . Special Melee Weapon . | . . . . . . . . . . . . Unidentified Prototypes . | . . . . . . . . . . . . Parts Lost 36 | . 5 2 8 . 10 . . 6 . 5 . Power 6 | . 1 1 2 . 1 . . 1 . . . Propulsion 20 | . 3 1 4 . 6 . . 4 . 2 . Utility 6 | . 1 . 1 . 2 . . . . 2 . Weapon 4 | . . . 1 . 1 . . 1 . 1 . Highest Loss Streak 9 | . 4 2 8 . 9 . . 4 . 4 . To Critical Strikes . | . . . . . . . . . . . . Average Slot Usage (%) 42 | . 47 69 50 47 53 58 53 29 . 3 27 Engine 4 | . 12 15 8 . . . . . . . . Core 1 | . . . . . 4 7 6 4 . . 3 Treads 2 | . . . . . . . . . . . 24 Leg 9 | . . . . 36 28 . . . . . . Wheel 3 | . 21 . 2 2 . . . . . . . Flight 8 | . 4 31 19 . 6 30 26 11 . . . Device 7 | . 9 13 12 8 9 . . . . 1 . Energy Gun 2 | . . 8 5 . 1 7 6 2 . . . Naked Turns 193 | . 11 . 20 1 19 . . 4 39 94 5 Heaviest Build 17 | 5 6 10 13 2 13 16 16 16 . 17 5 Greatest Support 375 | 32 32 12 20 68 102 16 16 16 3 30 375 Greatest Overweight (x) 1 | . 1 . . . 1 . . 1 . 1 . Average Overweight (x) . | . . . . . . . . . . . . Largest Inventory Capacity 5 | 5 5 5 5 5 5 5 5 5 5 5 5 Average Capacity 5 | 5 5 5 5 5 5 5 5 5 5 5 5 Most Carried 5 | . 2 2 5 5 5 5 5 5 5 5 3 Average Carried 2 | . . . 2 3 3 4 5 5 4 4 2 Final Capacity 5 | 5 5 5 5 5 5 5 5 5 5 5 5 Final Carried 5 | . 2 2 5 4 3 5 5 5 5 3 2 Class Distribution -------------------- 73% | Mutant 12% | Scavenger-Sprinter 12% | Scavenger-Mutant Dominant Class ---------------- Mutant | -10/Materials Scavenger-Mutant | -9/Materials Mutant | -8/Materials Mutant | -7/Factory Mutant | -7/Lower Caves Scavenger-Sprinter | -7/Lower Caves Scavenger-Sprinter | -6/Factory Sprinter | -6/DSF Mutant | -5/Factory Mutant | -4/Factory Mutant | -4/Armory Resources | -11 -10 -9 -8 -7 -7 -7 -6 -6 -5 -4 -4 ----------- Run | Scr Mat Mat Mat Fac Low Low Fac DSF Fac Fac Arm Matter Collected 553 | 159 40 100 14 . 120 10 . 30 . . 80 Remotely . | . . . . . . . . . . . . Salvage Created 961 | . 20 295 87 . 143 177 . 181 . 30 28 Parts 66 | . 4 21 11 . 14 2 . 8 . 1 5 Haulers Intercepted 1 | . . . . . . . . 1 . . . Recyclers Shooed 1 | . . 1 . . . . . . . . . Parts Field Recycled . | . . . . . . . . . . . . Retrieved Matter . | . . . . . . . . . . . . Parts Self-Destructed 14 | . . . . . 13 1 . . . . . Prevented . | . . . . . . . . . . . . Kills | -11 -10 -9 -8 -7 -7 -7 -6 -6 -5 -4 -4 ------- Run | Scr Mat Mat Mat Fac Low Low Fac DSF Fac Fac Arm Combat Hostiles Destroyed 17 | . 1 4 1 . 5 . . 1 . 1 4 Melee 10 | . 1 . . . 4 . . 1 . . 4 Guns 7 | . . 4 1 . 1 . . . . 1 . Classes Destroyed 9 | . 1 5 1 . . . . 2 . . . Worker 1 | . . 1 . . . . . . . . . Hauler 1 | . . . . . . . . 1 . . . Recycler 1 | . . 1 . . . . . . . . . Operator 2 | . . . 2 . . . . . . . . Watcher 2 | . . 2 . . . . . . . . . Swarmer 13 | . 1 2 . . 5 . . . . 1 4 Grunt 1 | . . 1 . . . . . . . . . Sentry 2 | . . 1 1 . . . . . . . . Specialist 1 | . . . . . . . . 1 . . . Best Kill Streak 8 | . 1 8 1 . 2 . . 1 . 1 4 Combat Bots Only 4 | . 1 3 1 . 2 . . 1 . 1 4 Max Kills in Single Turn 1 | . 1 1 1 . 1 . . 1 . 1 1 Gunslinging . | . . . . . . . . . . . . Exploded . | . . . . . . . . . . . . Melee 1 | . 1 . . . 1 . . 1 . . 1 Uniques/NPCs Destroyed . | . . . . . . . . . . . . Combat | -11 -10 -9 -8 -7 -7 -7 -6 -6 -5 -4 -4 -------- Run | Scr Mat Mat Mat Fac Low Low Fac DSF Fac Fac Arm Damage Taken 6424 | . 432 158 520 . 1482 . . 399 1 1574 1858 Core 2399 | . 220 35 288 . 438 . . 257 1 852 308 Absorbed by Shields 42 | . . . . . . . . 42 . . . Regen/Repaired (Parts) 18 | . . 18 . . . . . . . . . Core Remaining (%) 65 | 100 12 91 47 . . 37 . 69 99 . . Volleys Fired 44 | . . 18 17 . 4 . . . . 5 . Largest 1 | . . 1 1 . 1 . . . . 1 . Hottest 50 | . . 45 45 . 50 . . . . 45 . Shots Fired 44 | . . 18 17 . 4 . . . . 5 . Gun 44 | . . 18 17 . 4 . . . . 5 . Cannon . | . . . . . . . . . . . . Launcher . | . . . . . . . . . . . . Special . | . . . . . . . . . . . . Kinetic . | . . . . . . . . . . . . Thermal . | . . . . . . . . . . . . Explosive . | . . . . . . . . . . . . Electromagnetic 44 | . . 18 17 . 4 . . . . 5 . Robot Hit Streak 9 | . . 9 8 . 9 . . . . 2 . Robot Miss Streak 2 | . . 1 2 . 2 . . . . 1 . Penetration Max . | . . . . . . . . . . . . Secondary Targets . | . . . . . . . . . . . . Shots Hit Robots 45 | . . 15 13 . 2 3 . 9 . 3 . Core Hits 45 | . 6 9 5 . 19 . . 3 . 2 1 Critical Kills . | . . . . . . . . . . . . Critical Parts Destroyed . | . . . . . . . . . . . . Critical Strikes 1 | . . . . . . . . 1 . . . Sever 1 | . . . . . . . . 1 . . . Melee Attacks 18 | . . . 2 . . 3 . 13 . . . Impact 2 | . . . 2 . . . . . . . . Slashing 16 | . . . . . . 3 . 13 . . . Piercing . | . . . . . . . . . . . . Sneak Attacks 2 | . . . . . . . . 2 . . . Combat Hostiles 1 | . . . . . . . . 1 . . . Follow-up Attacks . | . . . . . . . . . . . . Damage Inflicted 1457 | . 80 238 218 . 237 234 . 368 3 41 38 Guns 534 | . . 238 197 . 58 . . . . 41 . Cannons . | . . . . . . . . . . . . Explosions 21 | . . . 21 . . . . . . . . Melee 602 | . . . . . . 234 . 368 . . . Ramming 300 | . 80 . . . 179 . . . 3 . 38 Kinetic . | . . . . . . . . . . . . Thermal 21 | . . . 21 . . . . . . . . Explosive . | . . . . . . . . . . . . Electromagnetic 534 | . . 238 197 . 58 . . . . 41 . Impact . | . . . . . . . . . . . . Slashing 602 | . . . . . . 234 . 368 . . . Piercing . | . . . . . . . . . . . . Highest Corruption 12 | . 3 . . . 12 12 . 10 . . . Average Corruption 8 | . 3 . . . 10 12 . 10 . . . Corruption Purged . | . . . . . . . . . . . . Corruption Blocked . | . . . . . . . . . . . . Effects 7 | . . . . . 3 2 . 2 . . . Message Errors 1 | . . . . . . 1 . . . . . Matter Fused 2 | . . . . . 1 . . 1 . . . Heat Flow Errors 2 | . . . . . 1 1 . . . . . Data Loss (minor) 1 | . . . . . 1 . . . . . . Misdirections 1 | . . . . . . . . 1 . . . Overload Shots . | . . . . . . . . . . . . Overflow Damage 192 | . 1 . . . . 181 . 10 . . . Projectiles . | . . . . . . . . . . . . Explosions . | . . . . . . . . . . . . Melee 192 | . 1 . . . . 181 . 10 . . . Knockbacks . | . . . . . . . . . . . . Impact . | . . . . . . . . . . . . Kinetic . | . . . . . . . . . . . . Secondary . | . . . . . . . . . . . . Self-Inflicted Damage 93 | . 33 . . . 59 . . . 1 . . Shots . | . . . . . . . . . . . . Rammed 114 | . 33 . . . 45 . . 1 1 . 34 Targets Rammed 154 | . 33 . . . 81 . . 1 1 . 38 Kicked 36 | . . . . . 36 . . . . . . Crushed 4 | . . . . . . . . . . . 4 Highest Temperature 142 | . . 107 76 . 142 136 . . . . 17 Average Temperature 50 | . . 49 22 . 110 133 . . . . 7 Received Heat Transfer 894 | . 60 45 189 . . . . 21 . 162 417 Siege Activations . | . . . . . . . . . . . . Robots Corrupted . | . . . . . . . . . . . . Combat Hostiles . | . . . . . . . . . . . . Parts Fried 2 | . . 1 1 . . . . . . . . Impact Corruptions 1 | . 1 . . . . . . . . . . Robots Melted . | . . . . . . . . . . . . Combat Hostiles . | . . . . . . . . . . . . Parts Melted . | . . . . . . . . . . . . Heat Transferred 50 | . . . 50 . . . . . . . . Parts Sabotaged . | . . . . . . . . . . . . Parts Stolen . | . . . . . . . . . . . . Parts Stripped . | . . . . . . . . . . . . Power Chain Reactions 3 | . . . 1 . . . . . . 2 . Missiles Intercepted . | . . . . . . . . . . . . Alert | -11 -10 -9 -8 -7 -7 -7 -6 -6 -5 -4 -4 ------- Run | Scr Mat Mat Mat Fac Low Low Fac DSF Fac Fac Arm Peak Influence 192 | . 45 192 100 75 . . 51 45 23 116 161 Initial 80 | . . 14 80 45 . . 39 35 23 11 56 Average 48 | . 7 118 52 49 . . 41 27 23 30 93 Maximum Alert Level . | . . . . . . . . . . . . Low Security (%) 100 | 100 100 100 100 100 . . 100 100 100 100 100 Level 1 . | . . . . . . . . . . . . Level 2 . | . . . . . . . . . . . . Level 3 . | . . . . . . . . . . . . Level 4 . | . . . . . . . . . . . . Level 5 . | . . . . . . . . . . . . High Security . | . . . . . . . . . . . . Max Security . | . . . . . . . . . . . . Squads Dispatched 8 | . 1 . 2 1 . . 1 1 1 1 . Investigation 3 | . . . . 1 . . 1 . . 1 . Extermination . | . . . . . . . . . . . . Reinforcement 5 | . 1 . 2 . . . . 1 1 . . Assault . | . . . . . . . . . . . . Garrison . | . . . . . . . . . . . . Intercept . | . . . . . . . . . . . . Searches Triggered . | . . . . . . . . . . . . Construction Impeded . | . . . . . . . . . . . . Haulers Reinforced . | . . . . . . . . . . . . Active Scanning Responses . | . . . . . . . . . . . . Cargo Convoy Interrupts . | . . . . . . . . . . . . Stealth | -11 -10 -9 -8 -7 -7 -7 -6 -6 -5 -4 -4 --------- Run | Scr Mat Mat Mat Fac Low Low Fac DSF Fac Fac Arm Distress Signals 2 | . . 2 . . . . . . . . . Communications Jammed . | . . . . . . . . . . . . Distress Signals . | . . . . . . . . . . . . Times Spotted 80 | . 7 12 14 . 7 1 . 7 4 20 8 Peak Tracking Total 12 | . 4 8 9 . 4 1 . 5 4 12 8 Tactical Retreats 5 | . . 1 2 . . . . 1 . 1 . Traps | -11 -10 -9 -8 -7 -7 -7 -6 -6 -5 -4 -4 ------- Run | Scr Mat Mat Mat Fac Low Low Fac DSF Fac Fac Arm Traps Triggered 2 | . . . . . . . . 2 . . . Indirectly . | . . . . . . . . . . . . Trap Hack Attempts . | . . . . . . . . . . . . Triggered . | . . . . . . . . . . . . Disarmed . | . . . . . . . . . . . . Reprogrammed . | . . . . . . . . . . . . Reused . | . . . . . . . . . . . . Traps Extracted . | . . . . . . . . . . . . Installed . | . . . . . . . . . . . . Triggered . | . . . . . . . . . . . . Machines | -11 -10 -9 -8 -7 -7 -7 -6 -6 -5 -4 -4 ---------- Run | Scr Mat Mat Mat Fac Low Low Fac DSF Fac Fac Arm Machines Disabled 1 | . . . 1 . . . . . . . . Max in Single Turn 1 | . . . 1 . . . . . . . . Machines Sabotaged . | . . . . . . . . . . . . Garrisons Compromised . | . . . . . . . . . . . . Overloaded Fab Kills 5 | . . . . . . . . . . 5 . Hacking | -11 -10 -9 -8 -7 -7 -7 -6 -6 -5 -4 -4 --------- Run | Scr Mat Mat Mat Fac Low Low Fac DSF Fac Fac Arm Machines Accessed 8 | . 1 1 2 1 . . 2 . . 1 . Terminals 6 | . 1 . 2 1 . . 2 . . . . Fabricators 1 | . . . . . . . . . . 1 . Repair Stations 1 | . . 1 . . . . . . . . . Recycling Units . | . . . . . . . . . . . . Scanalyzers . | . . . . . . . . . . . . Garrison Access . | . . . . . . . . . . . . Total Hacks 23 | . 3 2 9 3 . . 4 . . 2 . Successful 8 | . 1 2 2 . . . 2 . . 1 . Failed 15 | . 2 . 7 3 . . 2 . . 1 . Catastrophic 5 | . . . 3 1 . . 1 . . . . Database Lockouts . | . . . . . . . . . . . . Manual 17 | . 3 . 7 3 . . 2 . . 2 . Terminals 19 | . 3 . 9 3 . . 4 . . . . Fabricators 2 | . . . . . . . . . . 2 . Repair Stations 2 | . . 2 . . . . . . . . . Recycling Units . | . . . . . . . . . . . . Scanalyzers . | . . . . . . . . . . . . Garrison Access . | . . . . . . . . . . . . Terminal Hacks 4 | . . . 2 . . . 2 . . . . Record 1 | . . . . . . . 1 . . . . Open DSF 1 | . . . . . . . 1 . . . . Alert Level 1 | . . . 1 . . . . . . . . Unreport Threat 1 | . . . 1 . . . . . . . . Fabricator Hacks . | . . . . . . . . . . . . Repair Station Hacks 2 | . . 2 . . . . . . . . . Scan Component 1 | . . 1 . . . . . . . . . Repair 1 | . . 1 . . . . . . . . . Recycling Unit Hacks . | . . . . . . . . . . . . Scanalyzer . | . . . . . . . . . . . . Garrison Access Hacks . | . . . . . . . . . . . . Unauthorized Hacks 2 | . 1 . . . . . . . . 1 . Terminals 1 | . 1 . . . . . . . . . . Track 1 | . 1 . . . . . . . . . . Fabricators 1 | . . . . . . . . . . 1 . Overload 1 | . . . . . . . . . . 1 . Repair Stations . | . . . . . . . . . . . . Recycling Units . | . . . . . . . . . . . . Scanalyzers . | . . . . . . . . . . . . Garrison Access . | . . . . . . . . . . . . Data Cores Recovered . | . . . . . . . . . . . . Used . | . . . . . . . . . . . . Hacking Detections 7 | . 1 1 2 1 . . 1 . . 1 . Full Trace Events 2 | . . . . 1 . . 1 . . . . Feedback Events . | . . . . . . . . . . . . Feedback Blocked . | . . . . . . . . . . . . Robot Schematics Acquired . | . . . . . . . . . . . . Robots Built . | . . . . . . . . . . . . Authchips . | . . . . . . . . . . . . Time . | . . . . . . . . . . . . Total Robot Build Rating . | . . . . . . . . . . . . Part Schematics Acquired . | . . . . . . . . . . . . Parts Built . | . . . . . . . . . . . . Authchips . | . . . . . . . . . . . . Time . | . . . . . . . . . . . . Total Part Build Rating . | . . . . . . . . . . . . Parts Repaired 1 | . . 1 . . . . . . . . . Time 13 | . . 13 . . . . . . . . . Parts Recycled . | . . . . . . . . . . . . Recycled Matter . | . . . . . . . . . . . . Retrieved Matter . | . . . . . . . . . . . . Retrieved Components . | . . . . . . . . . . . . Parts Scanalyzed . | . . . . . . . . . . . . Part Schematics Acquired . | . . . . . . . . . . . . Parts Damaged . | . . . . . . . . . . . . Bothacking | -11 -10 -9 -8 -7 -7 -7 -6 -6 -5 -4 -4 ------------ Run | Scr Mat Mat Mat Fac Low Low Fac DSF Fac Fac Arm Used RIF Installer . | . . . . . . . . . . . . Robots Hacked . | . . . . . . . . . . . . Non-combat . | . . . . . . . . . . . . Combat . | . . . . . . . . . . . . Robot Hacks Applied . | . . . . . . . . . . . . Relay Couplers Released . | . . . . . . . . . . . . Fabnet Peak Effective % . | . . . . . . . . . . . . Robots Rewired . | . . . . . . . . . . . . Allies Hacked . | . . . . . . . . . . . . Hacks Repelled . | . . . . . . . . . . . . Allies | -11 -10 -9 -8 -7 -7 -7 -6 -6 -5 -4 -4 -------- Run | Scr Mat Mat Mat Fac Low Low Fac DSF Fac Fac Arm Total Allies . | . . . . . . . . . . . . Largest Group . | . . . . . . . . . . . . Highest-Rated Group . | . . . . . . . . . . . . Highest-Rated Ally . | . . . . . . . . . . . . Total Orders . | . . . . . . . . . . . . Ally Attacks . | . . . . . . . . . . . . Total Damage . | . . . . . . . . . . . . Kills . | . . . . . . . . . . . . Allies Corrupted . | . . . . . . . . . . . . Allies Melted . | . . . . . . . . . . . . Intel | -11 -10 -9 -8 -7 -7 -7 -6 -6 -5 -4 -4 ------- Run | Scr Mat Mat Mat Fac Low Low Fac DSF Fac Fac Arm Robot Analysis Total . | . . . . . . . . . . . . Derelict Logs Recovered 1 | . . . . . 1 . . . . . . Drone Launches . | . . . . . . . . . . . . Drone Recoveries . | . . . . . . . . . . . . Exploration | -11 -10 -9 -8 -7 -7 -7 -6 -6 -5 -4 -4 ------------- Run | Scr Mat Mat Mat Fac Low Low Fac DSF Fac Fac Arm Turns Passed 1689 | 38 240 116 227 210 300 70 10 96 40 157 185 Spaces Moved 1914 | 39 198 151 346 156 320 218 38 72 75 254 47 Core 502 | 10 3 . 54 137 8 . . 5 75 201 9 Treads 44 | . . . . . . . . . . 6 38 Legs 104 | . . . . 10 94 . . . . . . Wheels 168 | 29 93 . 37 9 . . . . . . . Hover . | . . . . . . . . . . . . Flight 1096 | . 102 151 255 . 218 218 38 67 . 47 . Fastest Speed 26 | 50 37 34 31 50 26 26 26 26 50 45 50 Average Speed 49 | 87 67 34 40 56 57 26 26 35 50 51 126 Slowest Speed 145 | 100 100 37 80 130 130 26 26 115 50 145 145 Overloaded Moves . | . . . . . . . . . . . . Propulsion Burnouts . | . . . . . . . . . . . . Robots Hopped 4 | . . 3 . . . 1 . . . . . Cave-ins Triggered . | . . . . . . . . . . . . Exploration Rate (%) 22 | 3 33 20 38 4 51 29 1 67 2 13 9 Regions Visited 11 Branch Regions 3 Pre-discovered Areas . | . . . . . . . . . . . . Known Exits Taken 2 | . . . . . 1 . 1 . . . . Unknown Exits Taken 8 | 1 1 1 1 1 . 1 . . 1 1 . Scrap Searched 3 | . . . . . 2 1 . . . . . Spaces Dug 2 | . . . 2 . . . . . . . . Terrain Destroyed 4 | . . . 4 . . . . . . . . Melee 2 | . . . 2 . . . . . . . . Projectile . | . . . . . . . . . . . . AOE 2 | . . . 2 . . . . . . . . Terrain Rammed . | . . . . . . . . . . . . Walls Destroyed . | . . . . . . . . . . . . Machines Disabled . | . . . . . . . . . . . . Actions | -11 -10 -9 -8 -7 -7 -7 -6 -6 -5 -4 -4 --------- Run | Scr Mat Mat Mat Fac Low Low Fac DSF Fac Fac Arm Total 2516 | 41 299 190 410 274 415 224 37 122 77 274 153 Wait 279 | . 61 15 34 100 . . . . . 7 62 Move 1896 | 38 197 144 345 155 319 215 37 71 75 253 47 Hop 4 | . . 3 . . . 1 . . . . . Pick Up 8 | . 1 . 1 1 2 2 . . . 1 . Fast Attach 49 | 3 6 5 5 10 6 1 . 5 . 3 5 Attach 14 | . . 2 2 2 3 . . . 1 3 1 Detach 6 | . . . 4 . . . . . 1 1 . Swap 3 | . 1 2 . . . . . . . . . Drop 14 | . . 1 . 6 . . . 6 . 1 . Fire 44 | . . 18 17 . 4 . . . . 5 . Melee 18 | . . . 2 . . 3 . 13 . . . Ram 79 | . 33 . . . 45 . . 1 . . . Kick 36 | . . . . . 36 . . . . . . Crush 38 | . . . . . . . . . . . 38 Escape Stasis 26 | . . . . . . . . 26 . . . Rewire 2 | . . . . . . 2 . . . . . Trap . | . . . . . . . . . . . . Miscellaneous . | . . . . . . . . . . . . Route ------- -11/Scrapyard -10/Materials -9/Materials -8/Materials -7/Factory -7/Lower Caves -7/Lower Caves -6/Factory -6/DSF -5/Factory -4/Factory -4/Armory History --------- Turn | Location | Event 5 | -11/Scrapyard | Discovered new exit (range 15) 39 | -11/Scrapyard | Entered Materials 222 | -10/Materials | Core integrity fell below 50% 250 | -10/Materials | Lost 4 parts (1p2n1u) 273 | -10/Materials | Discovered new exit (range 15) 275 | -10/Materials | Core integrity fell below 20% 279 | -10/Materials | Entered another Materials area 279 | -9/Materials | Evolved 2 slots: Power x1, Propulsion x1 297 | -9/Materials | Repaired Flight Unit 394 | -9/Materials | Discovered new exit (range 4) 395 | -9/Materials | Entered another Materials area 395 | -8/Materials | Evolved 2 slots: Power x1, Propulsion x1 601 | -8/Materials | Lost 8 parts (2p4n1u1w) 610 | -8/Materials | Core integrity fell below 50% 614 | -8/Materials | Discovered new exit (range 11) 622 | -8/Materials | Entered Factory 622 | -7/Factory | Evolved 2 slots: Propulsion x2 823 | -7/Factory | Discovered new exit (range 15) 832 | -7/Factory | Entered Lower Caves 833 | -7/Lower Caves | Build established: Mutant 1045 | -7/Lower Caves | Core integrity fell below 50% 1045 | -7/Lower Caves | System corruption reached 10% 1075 | -7/Lower Caves | Lost 9 parts (1p6n2u) 1096 | -7/Lower Caves | Identified exit to Lower Caves 1132 | -7/Lower Caves | Entered another Lower Caves area 1170 | -7/Lower Caves | Discovered new exit (range 16) 1202 | -7/Lower Caves | Entered Factory 1202 | -6/Factory | Evolved 2 slots: Propulsion x2 1203 | -6/Factory | Identified exit to DSF 1212 | -6/Factory | Entered DSF 1287 | -6/DSF | Discovered new exit (range 15) 1292 | -6/DSF | Additional patrols routed to DSF 1298 | -6/DSF | System corruption reached 10% 1308 | -6/DSF | Entered Factory 1308 | -5/Factory | Evolved 2 slots: Power x1, Propulsion x1 1328 | -5/Factory | Lost 4 parts (1p2n1w) 1346 | -5/Factory | Discovered new exit (range 4) 1348 | -5/Factory | Entered another Factory area 1348 | -4/Factory | Evolved 2 slots: Power x1, Propulsion x1 1480 | -4/Factory | Core integrity fell below 50% 1496 | -4/Factory | Discovered new exit (range 15) 1505 | -4/Factory | Entered Armory 1507 | -4/Armory | Lost 4 parts (1n2u1w) 1603 | -4/Armory | Core integrity fell below 20% 1690 | -4/Armory | Destroyed by G-67 Veteran with Plasma Rifle Last Messages --------------- Slammed into G-67 Veteran. Critical hit (Burn: +50). Slammed into G-67 Veteran. Compression Vault explodes. G-67 Veteran destroyed. Acquired 80 matter. S-27 Virus destroyed. Slammed into S-27 Virus. Crushed S-27 Virus. S-27 Virus destroyed. Slammed into S-27 Virus. Crushed S-27 Virus. S-27 Virus destroyed. Slammed into S-27 Virus. Crushed S-27 Virus. S-27 Virus destroyed. Crushed S-27 Virus. S-27 Virus destroyed. Critical hit (Burn: +50). Slammed into G-67 Veteran. Map ----- +----------------------------------------------------+ | ?????????????????# #????? | | ?????????????????# #????? | | ?????????????????# #????? | | ?????????????????#####+####????? | | ?????????????????????# #???????? | | ???????????????#####?# #???????? | | ??????????# ???# #?# #???????? | | ??????????# ???# ### ##??????? | | ??????????# #### ## #??????? | | ??????????#^ #??????? | | ?????????## ### #??????? | | ?????????# ?#####??????? | | ?????????# ##???????????? | | ?????????# #???????????? | | ??????#### [ #???????????? | | ??????+ !%= ############# | | ??????##### [ ## # | | ??????????# %## # | | ??????????# *%%*## # | | ??????????# [*[%## # | | ?????###### !]%%=## # | | ?? !] [ #% # | | ? ][ %+= # | | ??############### %# # | | ????????????????# # g% # | | ????????????????# # !!@%% # | | ????????????????# # !!!%%% # | | ????????????????# # !!g%%%% # | | ????????????????+ # %%%%%% # | | ????????????????# ########+#### | | ????????????????# ########%#??? | | ????????????????# %#??? | | ????????????????+ ######## #??? | | ????????????????#+##??????# #??? | | ??????????????????????????# #??? | | ??????????????????????????# #??? | | ??????????????????????????# #??? | | ??????????????????????????# #??? | | ??????????????????????????# #??? | | ??????????????????????????# #??? | | ??????????????????????????? ???? | | ???????????????????????????#???? | | ???????????????????????????????? | | ???????????????????????????????? | | ???????????????????????????????? | | ???????????????????????????????? | | | | | | | | | +----------------------------------------------------+ Best States ------------- Heat Dissipation 43 Energy Generation 15 Energy Capacity 250 Matter Stores 300 Matter Capacity 300 Sight Range 16 Robot Scan Range 14 Terrain Scan Density 10 Cloak Strength 3 Armor Coverage 225 Evasion (%) 64 Recoil Reduction 10 Authchip Count 2 Item Schematics ----------------- None Robot Schematics ------------------ None Fabricated ------------ Nothing Alien Tech Used ----------------- None Achievements -------------- Streaker Challenges ------------ None Game ------ Seed ReactionSpliceRipper Manual? 0 Play Time 00:30:41 Cumulative 71.5 hours Start 2022.03.22 @ 04:39:11 End 2022.03.22 @ 05:10:17 Sessions 1 Manual Loads 0 Difficulty Rogue Special Mode None Game No. 55 Rogue 55 Adventurer 0 Explorer 0 Win Type - Total 0 Types 0/0/0/0/0/0/0/0/0 Lore% 44 Gallery% 47 Achievement% 40 Wizard Run 0 Options --------- ASCII 0 Keyboard 0 Movement Numpad Keybinds 0 Fullscreen 2 Font 18/TerminusBold Map View 76x50 Tactical HUD 0 Map Filters NONE Filters NONE Steam 1 RUN: 730818c6-c589-46dc-be49-eb54ebfecb87